bitfinex-derivatives/quotes_ETHF0:USTF0_20241013
["timestamp","ask_amount","ask_price","bid_price","bid_amount"]
[1728860541944,0.40544,2467.1,2467.0,0.40545]
[1728860542345,0.40542,2467.2,2467.0,0.40545]
[1728860542748,4.5063,2467.3,2467.0,0.40545]
[1728860542953,0.40543,2467.1,2467.0,0.40545]
[1728860545651,0.3933,2467.3,2467.0,0.40545]
[1728860545853,0.40543,2467.2,2467.0,0.40545]
[1728860546550,0.3933,2467.3,2467.0,0.40545]
[1728860546759,0.40543,2467.1,2467.0,0.40545]
[1728860547554,0.79871,2467.3,2467.1,0.40542]
[1728860547752,0.79871,2467.3,2466.8,3.9989]
[1728860547753,0.40543,2467.2,2467.0,0.40544]
[1728860547965,0.40543,2467.2,2467.1,0.3906]
[1728860548758,3.6011,2467.3,2466.8,3.9989]
[1728860548954,0.40546,2467.0,2466.9,0.40546]
[1728860549959,0.4131,2467.1,2466.8,0.7911]
[1728860550155,0.4131,2467.1,2466.8,1.19657]
[1728860550355,0.40546,2466.9,2466.8,1.19657]
[1728860551655,0.4131,2467.1,2466.8,0.7911]
[1728860551855,0.4131,2467.1,2466.9,0.40545]
[1728860551856,0.40545,2467.0,2466.9,0.40545]
[1728860552076,0.40546,2467.0,2466.9,0.40546]
[1728860553559,0.40546,2466.9,2466.8,1.19657]
[1728860554154,0.40546,2467.0,2466.9,0.40546]
[1728860555264,0.40546,2466.9,2466.8,1.19657]
[1728860555465,0.82396,2466.9,2466.8,1.19657]
[1728860555758,0.82396,2466.9,2466.8,2.50657]
[1728860556361,0.4185,2466.9,2466.8,2.50657]
[1728860557367,0.4185,2466.9,2466.7,0.3906]
[1728860557663,6.6736,2466.8,2466.2,3.2078]
[1728860557968,0.40558,2466.2,2466.1,0.7659]
[1728860558167,1.31,2466.2,2466.1,1.17149]
[1728860558867,1.31,2466.2,2466.1,2.48149]
[1728860559487,1.71558,2466.2,2466.1,2.48149]
[1728860559654,1.71558,2466.2,2466.1,2.0759]
[1728860559861,0.40558,2466.2,2466.1,1.17149]
[1728860560364,0.4195,2466.4,2466.1,0.7659]
[1728860560560,0.40557,2466.3,2466.2,0.40557]
[1728860564567,0.40557,2466.3,2466.1,0.7659]
[1728860564568,0.40558,2466.2,2466.1,1.17149]
[1728860564876,0.40558,2466.2,2466.1,0.3827]
[1728860565364,0.4195,2466.4,2466.1,0.3827]
[1728860565365,0.40557,2466.3,2466.2,0.40557]
[1728860565565,0.40555,2466.4,2466.3,0.40556]
[1728860566364,0.7689,2466.5,2466.4,0.40555]
[1728860566562,4.113,2466.8,2466.1,0.3827]
[1728860566563,4.113,2466.8,2466.2,0.8006]
[1728860566765,0.40551,2466.7,2466.6,0.40551]
[1728860566967,0.81229,2466.8,2466.7,0.4055]
[1728860567168,0.81229,2466.8,2466.2,1.81453]
[1728860567364,0.81229,2466.8,2466.6,0.4055]
[1728860567562,0.81229,2466.8,2466.2,1.81453]
[1728860567563,0.40551,2466.7,2466.2,0.8006]
[1728860567970,0.40551,2466.7,2466.6,0.40551]
[1728860568876,0.40551,2466.7,2466.2,0.8006]
[1728860569177,0.40551,2466.7,2466.6,0.40551]
[1728860570076,0.4068,2466.8,2466.3,3.2078]
[1728860570268,0.4068,2466.8,2466.7,0.4055]
[1728860570579,0.81228,2466.8,2466.7,0.4055]
[1728860571179,0.4068,2466.8,2466.7,0.4055]
[1728860571469,0.40546,2467.0,2466.7,0.4055]
[1728860571667,0.40546,2467.0,2466.9,0.40546]
[1728860573970,5.72949305,2467.1,2466.8,1.23197]
[1728860574172,0.40546,2466.9,2466.8,1.23197]
[1728860574977,0.40545,2467.0,2466.9,0.40546]
[1728860575369,0.40545,2467.0,2466.8,1.23197]
[1728860576079,5.72949305,2467.1,2466.8,1.23197]
[1728860576279,0.40546,2466.9,2466.8,1.23197]
[1728860578078,0.40546,2467.0,2466.8,1.23197]
[1728860578374,0.40546,2466.9,2466.8,1.23197]
[1728860579375,5.06727,2466.9,2466.4,0.40554]
[1728860579678,0.40553,2466.5,2466.4,0.40555]
[1728860579882,0.40553,2466.5,2466.4,0.53235215]
[1728860580074,0.40553,2466.5,2466.4,0.5323523]
[1728860580280,0.3939,2466.6,2466.3,1.1924]
[1728860580476,0.40555,2466.4,2466.3,1.1924]
[1728860580680,0.40555,2466.4,2466.3,0.12680536]
[1728860580883,0.40559,2466.1,2466.0,1.06317802]
[1728860581072,0.40559,2466.1,2465.8,0.92204041]
[1728860581073,0.40564,2465.8,2465.6,0.79507]
[1728860581272,0.40564,2465.8,2465.6,0.40567]
[1728860581477,3.25564,2465.8,2465.6,0.40567]
[1728860581780,2.85,2465.8,2465.6,0.40567]
[1728860582084,3.25565,2465.8,2465.5,4.00668]
[1728860582282,2.85,2465.8,2465.5,3.601]
[1728860582476,0.40567,2465.7,2465.5,3.601]
[1728860583081,0.40567,2465.7,2465.5,4.00669]
[1728860583283,0.40566,2465.7,2465.5,4.00669]
[1728860584687,2.85,2465.8,2465.5,3.601]
[1728860584985,2.85,2465.8,2465.5,4.00668]
[1728860584986,0.40566,2465.7,2465.5,4.00668]
[1728860585182,0.40568,2465.6,2465.5,3.601]
[1728860585779,0.40568,2465.6,2465.5,3.2078]
[1728860587480,7.31168,2465.6,2465.5,3.2078]
[1728860588380,7.31168,2465.6,2465.2,0.3919]
[1728860588381,6.906,2465.6,2465.2,0.3919]
[1728860588591,6.906,2465.6,2465.3,0.40572]
[1728860588592,0.40572,2465.4,2465.3,0.40572]
[1728860588888,0.40573,2465.4,2465.2,0.79764]
[1728860589079,0.40573,2465.4,2465.3,0.40573]
[1728860589983,0.40573,2465.3,2465.2,0.3919]
[1728860590176,2.85,2465.4,2464.9,3.2078]
[1728860590377,0.40575,2465.2,2465.0,0.40577]
[1728860590576,0.40575,2465.2,2464.9,3.6046]
[1728860590577,0.40576,2465.1,2464.9,4.01038]
[1728860590784,2.85,2465.2,2464.9,4.01038]
[1728860590988,0.40578,2465.0,2464.9,4.01038]
[1728860591185,0.40578,2465.0,2464.9,3.6046]
[1728860591387,3.25578,2465.0,2464.9,3.2078]
[1728860591790,0.40578,2465.0,2464.9,3.2078]
[1728860592489,3.86439,2465.2,2464.9,3.2078]
[1728860592490,0.40577,2465.1,2464.9,3.2078]
[1728860592877,3.86439,2465.2,2464.9,3.2078]
[1728860593083,0.4006,2465.0,2464.9,3.2078]
[1728860593285,0.4006,2465.0,2464.9,3.61359]
[1728860597791,0.4006,2465.0,2464.9,0.40579]
[1728860598682,0.8189,2465.0,2464.9,0.40579]
[1728860599689,1.22468,2465.0,2464.6,3.2078]
[1728860599890,1.22468,2465.0,2464.9,0.40579]
[1728860600086,0.8189,2465.0,2464.9,0.40579]
[1728860600583,1.22468,2465.0,2464.6,3.2078]
[1728860600793,0.8189,2465.0,2464.9,0.40579]
[1728860601488,0.4006,2465.0,2464.9,0.40579]
[1728860603388,0.4006,2465.0,2464.6,1.01459]
[1728860603389,3.2078,2465.2,2465.1,0.40576]
[1728860605098,3.2078,2465.2,2465.0,0.40576]
[1728860605099,6.46354,2465.2,2465.0,0.40576]
[1728860605392,6.46354,2465.2,2465.1,0.40576]
[1728860605892,6.0578,2465.2,2465.1,0.40576]
[1728860607189,2.85,2465.2,2465.1,0.40576]
[1728860608095,1.6213,2465.4,2465.3,0.40573]
[1728860608096,3.66402,2465.4,2465.3,0.40573]
[1728860608398,3.66402,2465.4,2465.0,0.8096]
[1728860608399,0.40573,2465.3,2465.2,0.40573]
[1728860609095,4.87702,2465.4,2465.2,0.40573]
[1728860611600,8.5273,2465.4,2465.0,0.8096]
[1728860611801,8.5273,2465.4,2464.8,3.6136]
[1728860611802,0.40579,2465.0,2464.8,3.6136]
[1728860612012,0.79309,2464.9,2464.8,3.2078]
[1728860612300,0.79309,2464.9,2464.8,3.61361]
[1728860612301,0.3873,2464.9,2464.8,3.61361]
[1728860614001,0.3873,2464.9,2464.8,0.40581]
[1728860621007,4.062,2465.1,2465.0,0.40578]
[1728860621207,4.85187,2465.1,2464.9,0.40578]
[1728860621503,4.85187,2465.1,2465.0,0.40578]
[1728860621504,0.3841,2465.1,2465.0,0.40578]
[1728860621910,1.7041,2465.1,2465.0,0.40578]
[1728860623509,1.32,2465.1,2465.0,0.40578]
[1728860631311,1.32,2465.1,2465.0,0.53265264]
[1728860632413,1.72576,2465.1,2465.0,0.53265264]
[1728860632612,6.39123,2465.1,2464.7,1.46748781]
[1728860632817,1.32,2464.8,2464.7,0.40582]
[1728860633112,1.72581,2464.8,2464.7,0.28182036]
[1728860633416,1.72581,2464.8,2464.7,0.68764777]
[1728860634813,1.72581,2464.8,2464.7,0.53271927]
[1728860635014,1.72581,2464.8,2464.7,0.68769039]
[1728860635216,1.72581,2464.8,2464.7,0.40583]
[1728860635412,1.72581,2464.8,2464.7,0.68771435]
[1728860635604,3.04581,2464.8,2464.7,0.28188435]
[1728860635805,3.04581,2464.8,2464.7,0.12689154]
[1728860636217,1.72581,2464.8,2464.7,0.12689154]
[1728860638114,3.04581,2464.8,2464.7,0.12689154]
[1728860638416,0.40584,2464.7,2464.5,4.67531781]
[1728860638614,2.11344,2464.6,2464.5,3.61365]
[1728860638819,2.52434,2464.6,2464.5,3.74055399]
[1728860639515,2.1185,2464.6,2464.5,3.74055399]
[1728860641920,1.7309,2464.6,2464.5,3.74055399]
[1728860642123,1.32,2464.6,2464.5,3.74055399]
[1728860642321,2.5134461,2464.8,2464.6,0.40583]
[1728860642322,1.32,2464.7,2464.6,0.40583]
[1728860642526,2.5167361,2464.8,2464.7,0.40583]
[1728860642823,3.8367361,2464.8,2464.7,0.40583]
[1728860643428,1.7291,2464.8,2464.7,0.40583]
[1728860644622,1.7291,2464.8,2464.7,0.82633]
[1728860650831,1.32,2464.8,2464.7,0.82633]
[1728860652428,1.72581,2464.8,2464.7,0.82633]
[1728860652627,1.32,2464.8,2464.7,0.82633]
[1728860656526,1.32,2464.8,2464.7,0.95321936]
[1728860656927,1.32,2464.9,2464.8,0.40581]
[1728860657126,1.32,2464.9,2464.8,0.94859763]
[1728860657333,1.32,2464.9,2464.8,0.94859343]
[1728860659934,1.72579,2464.9,2464.8,0.82171]
[1728860660134,1.32,2464.9,2464.8,0.82171]
[1728860663038,1.32,2464.9,2464.7,0.82632]
[1728860663039,0.40581,2464.8,2464.7,0.82632]
[1728860663241,0.40581,2464.8,2464.7,0.12689326]
[1728860663242,1.72581,2464.8,2464.7,0.12689326]
[1728860663531,3.0567,2464.8,2464.7,0.12689304]
[1728860663738,3.0567,2464.8,2464.5,5.51131781]
[1728860663943,0.40583,2464.7,2464.6,0.12689546]
[1728860664630,1.7367,2464.8,2464.5,4.44965]
[1728860664631,0.40584,2464.6,2464.5,4.44965]
[1728860664833,4.5278,2464.6,2464.4,1.06166781]
[1728860665045,2.14777,2464.5,2464.3,0.80138]
[1728860665342,1.32,2464.4,2464.3,0.80138]
[1728860665546,1.72587,2464.4,2464.3,0.92829518]
[1728860668743,1.32,2464.4,2464.3,0.80138]
[1728860669344,1.72587,2464.4,2464.3,0.40588]
[1728860669736,1.7402,2464.4,2464.3,0.40588]
[1728860671247,1.32,2464.4,2464.3,0.40588]
[1728860671447,1.32,2464.4,2464.3,0.53278875]
[1728860671836,1.32,2464.4,2464.3,0.53278954]
[1728860672053,1.32,2464.4,2464.3,0.40588]
[1728860672543,1.32,2464.4,2464.3,0.53278838]
[1728860672839,1.32,2464.4,2464.3,0.40588]
[1728860674250,1.32,2464.4,2464.3,0.53278812]
[1728860675145,1.32,2464.4,2464.3,0.53278896]
[1728860676449,1.32,2464.4,2464.3,0.68766851]
[1728860677741,1.32,2464.4,2464.3,0.53278896]
[1728860679444,1.72587,2464.4,2464.3,0.40589]
[1728860679652,2.11957,2464.4,2464.3,0.40589]
[1728860679860,5.7713,2464.4,2464.2,3.2078]
[1728860680152,2.11079,2464.3,2464.2,3.2078]
[1728860680346,2.11079,2464.3,2464.2,3.61371]
[1728860681852,3.43079,2464.3,2464.2,3.2078]
[1728860682049,7.48919,2464.3,2464.2,3.2078]
[1728860682249,10.8058261,2464.3,2464.2,3.2078]
[1728860682547,8.69819,2464.3,2464.2,3.2078]
[1728860682946,8.69819,2464.3,2464.2,3.61371]
[1728860683147,7.37819,2464.3,2464.2,3.61371]
[1728860684742,6.05819,2464.3,2464.2,3.61371]
[1728860684950,1.209,2464.3,2464.2,3.61371]
[1728860685147,1.32,2464.3,2464.2,3.61371]
[1728860685948,1.32,2464.3,2464.2,0.40591]
[1728860695149,3.43494512,2464.7,2464.3,1.01473]
[1728860695150,2.5115361,2464.7,2464.3,1.01473]
[1728860695347,0.3859,2464.7,2464.6,0.40584]
[1728860695547,0.79173,2464.7,2464.6,0.40584]
[1728860696556,2.11173,2464.7,2464.6,0.40584]
[1728860696947,1.7059,2464.7,2464.6,0.40584]
[1728860697344,2.11173,2464.7,2464.6,0.40584]
[1728860697752,1.7059,2464.7,2464.6,0.40584]
[1728860700755,2.11173,2464.7,2464.6,0.40584]
[1728860700955,1.7059,2464.7,2464.6,0.40584]
[1728860701750,2.11173,2464.7,2464.6,0.40584]
[1728860701963,2.72048,2464.7,2464.3,4.69306781]
[1728860702163,1.72587,2464.4,2464.3,3.61369]
[1728860702374,1.32,2464.4,2464.3,3.61369]
[1728860702555,1.72587,2464.4,2464.3,3.61369]
[1728860702958,1.32,2464.4,2464.3,3.61369]
[1728860703252,1.32,2464.4,2464.3,3.2078]
[1728860703458,1.72587,2464.4,2464.3,3.61369]
[1728860703659,1.32,2464.4,2464.3,3.61369]
[1728860704373,1.72587,2464.4,2464.3,3.61369]
[1728860705366,1.32,2464.4,2464.3,3.61369]
[1728860706165,1.32,2464.4,2464.3,0.53279746]
[1728860706567,1.72587,2464.4,2464.3,0.53279746]
[1728860707269,1.32,2464.4,2464.3,0.53279746]
[1728860707676,1.72587,2464.4,2464.3,0.53279746]
[1728860710168,1.72587,2464.4,2464.3,0.40589]
[1728860710377,1.72587,2464.4,2464.3,0.53280101]
[1728860710676,0.40591,2464.2,2464.1,1.06166781]
[1728860710974,3.04591,2464.2,2464.1,0.12692172]
[1728860711361,3.83141,2464.2,2464.1,0.12692172]
[1728860711568,7.88981,2464.2,2464.1,0.12692172]
[1728860711769,17.09761,2464.2,2464.1,0.12692172]
[1728860711970,0.40595,2464.0,2463.8,0.40597]
[1728860712170,1.7165,2463.9,2463.7,1.06166781]
[1728860712380,1.72597,2463.8,2463.5,1.47736781]
[1728860712672,0.40597,2463.8,2463.6,0.68793326]
[1728860712872,0.40597,2463.8,2463.6,0.40599]
[1728860712873,1.32,2463.7,2463.6,0.40599]
[1728860713070,1.32,2463.7,2463.6,0.68793874]
[1728860713276,1.32,2463.7,2463.6,0.53293595]
[1728860713574,1.32,2463.7,2463.6,0.53293632]
[1728860714078,1.32,2463.7,2463.6,0.53293631]
[1728860714673,2.1076361,2464.0,2463.6,0.12694631]
[1728860714976,2.1076361,2464.0,2463.6,0.40601]
[1728860714977,1.32,2463.7,2463.6,0.40601]
[1728860715182,1.32,2463.7,2463.6,0.53295197]
[1728860715977,3.4276361,2464.1,2463.6,0.12694197]
[1728860715978,2.1076361,2464.1,2463.6,0.12694197]
[1728860716171,1.32,2463.7,2463.6,0.40601]
[1728860716478,1.32,2463.7,2463.6,3.8955895]
[1728860716869,1.32,2463.7,2463.6,3.61381]
[1728860717175,1.32,2463.7,2463.6,3.89557757]
[1728860717372,1.32,2463.7,2463.6,3.74074277]
[1728860724297,1.32,2463.7,2463.6,3.61381]
[1728860724475,1.32,2463.7,2463.6,3.74074614]
[1728860728189,1.32,2463.7,2463.6,3.61381]
[1728860728385,1.32,2463.7,2463.6,3.74074583]
[1728860732288,1.32,2463.8,2463.6,7.39393583]
[1728860732486,3.7225,2464.2,2464.1,0.40592]
[1728860732787,4.9485,2464.2,2464.1,0.40592]
[1728860735083,1.7407,2464.2,2464.1,0.40592]
[1728860737890,1.7407,2464.2,2463.9,1.2005]
[1728860737891,5.3154361,2464.5,2463.9,5.7283]
[1728860738191,0.4175,2464.4,2464.3,0.40589]
[1728860739191,1.7375,2464.4,2464.3,0.40589]
[1728860751400,2.14337,2464.4,2464.3,0.40589]
[1728860751594,1.7375,2464.4,2464.3,0.40589]
[1728860763815,1.32,2464.4,2464.3,0.40589]
[1728860764608,1.32,2464.4,2464.1,4.26946781]
[1728860764609,5.7330361,2464.6,2464.1,5.58946781]
[1728860764812,5.7330361,2464.6,2464.5,0.40586]
[1728860765011,8.76175512,2464.8,2464.3,2.33473]
[1728860765012,2.1076361,2464.7,2464.3,2.33473]
[1728860765207,1.32,2464.5,2464.4,1.1918]
[1728860765504,1.32,2464.5,2464.4,1.72457172]
[1728860766303,1.32,2464.5,2464.4,1.59767]
[1728860766803,1.32,2464.5,2464.4,1.21307]
[1728860775011,1.32,2464.5,2464.4,1.33997726]
[1728860777109,0.4059,2464.3,2464.1,4.67537781]
[1728860777410,1.7422,2464.2,2464.1,4.67537781]
[1728860777605,1.7422,2464.2,2464.1,5.16028581]
[1728860779009,1.7422,2464.2,2464.1,1.95248581]
[1728860779906,2.14811,2464.2,2464.1,1.95248581]
[1728860781614,2.14811,2464.2,2464.1,0.68775362]
[1728860782501,2.14811,2464.2,2464.1,0.28184362]
[1728860783013,0.40596,2463.9,2463.7,1.06166781]
[1728860783210,0.40596,2463.9,2463.7,0.40599]
[1728860783211,2.51327,2463.8,2463.7,0.40599]
[1728860783512,2.51327,2463.8,2463.7,0.28193838]
[1728860783712,6.57247,2463.8,2463.7,0.12694083]
[1728860783910,6.57247,2463.8,2463.5,4.67066781]
[1728860783911,0.40601,2463.6,2463.5,3.2078]
[1728860784218,0.40601,2463.6,2463.5,3.48980236]
[1728860784219,1.72601,2463.6,2463.5,3.48980236]
[1728860784412,4.93381,2463.6,2463.5,0.12695039]
[1728860784612,0.40602,2463.5,2463.4,0.3953]
[1728860784812,1.32,2463.5,2463.2,1.46286781]
[1728860785015,3.2078,2463.6,2463.2,1.20257]
[1728860785016,1.32,2463.3,2463.2,1.20257]
[1728860785214,1.32,2463.3,2463.2,1.3295401]
[1728860785411,1.32,2463.3,2463.2,1.20257]
[1728860785716,1.32,2463.3,2463.2,1.3295384]
[1728860786115,1.32,2463.3,2463.2,1.20257]
[1728860788713,3.2078,2463.6,2463.2,1.20257]
[1728860788914,3.2078,2463.6,2463.5,0.40602]
[1728860789114,4.5278,2463.6,2463.5,0.40602]
[1728860791513,0.40603,2463.5,2463.3,0.40604]
[1728860791722,1.32,2463.4,2463.3,0.40604]
[1728860795717,1.32,2463.4,2463.0,4.5278]
[1728860795718,1.32,2463.4,2463.0,3.2078]
[1728860795918,1.32,2463.4,2463.2,0.40606]
[1728860795919,0.3943,2463.3,2463.2,0.40606]
[1728860797032,1.7143,2463.3,2463.2,0.40606]
[1728860798925,2.12036,2463.3,2463.2,0.40606]
[1728860799224,1.7143,2463.3,2463.2,0.40606]
[1728860800020,1.7143,2463.3,2463.0,0.8041]
[1728860800021,3.6021,2463.3,2463.0,0.8041]
[1728860800225,3.6021,2463.3,2463.2,0.40607]
[1728860800418,5.32816,2463.3,2463.2,0.40607]
[1728860800828,6.64816,2463.3,2463.1,0.40608]
[1728860801017,1.32,2463.2,2463.1,0.40608]
[1728860802121,1.72607,2463.2,2463.1,0.40608]
[1728860802316,1.32,2463.2,2463.1,0.40608]
[1728860802930,1.32,2463.2,2463.1,0.40609]
[1728860802931,1.72607,2463.2,2463.1,0.40609]
[1728860803228,3.2078,2463.6,2463.1,5.38]
[1728860803523,3.2078,2463.6,2463.5,0.40602]
[1728860803932,3.61381,2463.6,2463.5,0.40602]
[1728860804329,3.2078,2463.6,2463.5,0.40602]
[1728860805034,4.5278,2463.6,2463.5,0.40602]
[1728860805618,4.5278,2463.6,2463.4,0.8102]
[1728860805921,4.5278,2463.6,2463.4,1.21622]
[1728860805922,1.32,2463.5,2463.4,1.21622]
[1728860808829,3.2078,2463.6,2463.5,0.40602]
[1728860809026,4.5278,2463.6,2463.5,0.40602]
[1728860809225,3.2078,2463.6,2463.5,0.80652]
[1728860809424,4.5278,2463.6,2463.5,0.80652]
[1728860810554,1.32,2463.6,2463.5,0.80652]
[1728860811123,1.72601,2463.6,2463.4,0.8102]
[1728860811429,1.72601,2463.6,2463.0,0.40609]
[1728860811430,0.40608,2463.2,2463.0,0.40609]
[1728860811634,1.7248,2463.1,2463.0,0.40611]
[1728860812226,1.7248,2463.1,2462.8,0.4047]
[1728860812426,1.7248,2463.1,2462.8,1.61584]
[1728860812427,1.32,2462.9,2462.8,1.61584]
[1728860814434,0.4048,2463.1,2462.8,1.61584]
[1728860814435,1.32,2463.0,2462.9,0.40612]
[1728860815025,0.4048,2463.1,2463.0,0.40611]
[1728860815228,1.7248,2463.1,2463.0,0.40611]
[1728860820743,1.32,2463.2,2463.1,0.40609]
[1728860821047,0.109,2463.6,2463.5,0.40601]
[1728860821048,0.40601,2463.6,2463.5,0.40601]
[1728860821239,0.40601,2463.6,2463.2,1.01519]
[1728860821240,0.3831,2463.3,2463.2,0.81077]
[1728860821537,1.7031,2463.3,2463.2,0.81077]
[1728860822336,1.32,2463.3,2463.2,1.19767]
[1728860823141,2.64,2463.3,2463.2,1.19767]
[1728860823333,2.64,2463.3,2463.2,0.40607]
[1728860823334,3.04606,2463.3,2463.2,0.40607]
[1728860823538,2.64,2463.3,2462.9,1.1935]
[1728860823838,2.64,2463.3,2463.1,0.40608]
[1728860823839,0.3975,2463.2,2463.1,0.40608]
[1728860824037,0.7855,2463.2,2463.1,0.40608]
[1728860824337,2.51157,2463.2,2463.1,0.40608]
[1728860824562,2.1055,2463.2,2463.1,0.40608]
[1728860825830,0.7855,2463.2,2463.1,0.40608]
[1728860827034,1.19157,2463.2,2463.1,0.40608]
[1728860827237,0.7855,2463.2,2462.9,0.794]
[1728860827440,3.25609,2463.1,2463.0,0.4061]
[1728860827643,2.85,2463.1,2463.0,0.4061]
[1728860827836,3.25609,2463.1,2463.0,0.4061]
[1728860828538,3.25609,2463.1,2463.0,0.53308322]
[1728860829039,3.25609,2463.1,2463.0,0.12698322]
[1728860829341,0.40614,2462.8,2462.7,1.06166781]
[1728860829550,0.40614,2462.8,2462.6,1.06166781]
[1728860829551,0.40615,2462.7,2462.6,1.06166781]
[1728860829843,0.40619,2462.5,2462.4,0.4062]
[1728860830040,0.40619,2462.5,2462.3,1.06166781]
[1728860830041,5.370602,2462.6,2462.2,1.06166781]
[1728860830439,5.370602,2462.6,2462.1,1.99520171]
[1728860830440,1.6012,2462.5,2462.3,0.40621]
[1728860830641,1.195,2462.5,2462.3,0.40621]
[1728860831046,4.4028,2462.5,2462.3,0.40621]
[1728860831239,4.4028,2462.5,2462.2,0.40623]
[1728860831441,4.4028,2462.5,2462.3,0.40621]
[1728860832044,6.9108,2462.4,2462.0,1.06166781]
[1728860832350,0.40626,2462.1,2461.8,0.40629]
[1728860832651,2.85,2462.0,2461.9,0.40627]
[1728860833038,2.85,2462.0,2461.8,0.40629]
[1728860833341,2.85,2462.0,2461.8,0.4063]
[1728860833648,2.85,2462.0,2461.5,1.2427]
[1728860833843,2.85,2461.8,2461.7,0.40631]
[1728860834036,2.85,2462.0,2461.9,0.40629]
[1728860834237,6.8621,2462.2,2462.1,0.40625]
[1728860834551,6.465,2462.2,2462.1,0.40625]
[1728860835444,2.85,2462.4,2462.1,4.0616]
[1728860835649,2.221202,2462.7,2462.5,0.40619]
[1728860835650,0.094,2462.7,2462.5,0.40619]
[1728860835961,0.094,2462.7,2462.1,2.03126]
[1728860835962,0.3829,2462.7,2462.6,0.40617]
[1728860838750,2.85,2462.8,2462.5,0.3974]
[1728860838953,6.4708,2463.0,2462.9,0.40612]
[1728860839148,3.263,2463.0,2462.9,0.40612]
[1728860839349,0.413,2463.0,2462.9,0.40612]
[1728860839954,4.807,2463.3,2462.8,1.01533]
[1728860839955,3.2078,2463.3,2462.8,1.01533]
[1728860840158,6.68030416,2463.4,2463.3,0.40606]
[1728860840159,10.30110416,2463.4,2463.3,0.40606]
[1728860841356,7.09330416,2463.4,2463.3,0.40606]
[1728860842882,14.36030416,2463.4,2463.0,0.4234]
[1728860843064,14.36030416,2463.4,2463.0,0.82951]
[1728860843065,2.85,2463.1,2463.0,0.82951]
[1728860845184,2.85,2463.3,2463.0,0.4234]
[1728860845373,2.85,2463.3,2463.2,0.40607]
[1728860847778,0.413,2463.4,2463.3,0.40606]
[1728860849569,0.81905,2463.4,2463.2,0.40606]
[1728860849873,6.0578,2463.3,2463.2,0.40606]
[1728860850574,3.2078,2463.3,2463.2,0.40606]
[1728860851076,3.2078,2463.3,2463.0,0.4234]
[1728860851077,0.413,2463.4,2463.3,0.40606]
[1728860852274,3.6251,2463.6,2463.0,1.43864]
[1728860852475,3.6251,2463.6,2463.5,0.40602]
[1728860855875,2.85,2463.7,2463.3,0.4089]
[1728860856074,3.6838,2463.9,2463.4,0.4006]
[1728860856279,3.5898,2463.9,2463.8,0.40597]
[1728860856881,3.99576,2463.9,2463.8,0.40597]
[1728860857374,3.5898,2463.9,2463.8,0.40597]
[1728860857578,3.99576,2463.9,2463.8,0.40597]
[1728860860090,3.5898,2463.9,2463.8,0.40597]
[1728860861893,0.382,2463.9,2463.8,0.40597]
[1728860862786,6.441,2464.2,2463.5,0.4059]
[1728860862984,6.441,2464.2,2464.0,0.40594]
[1728860862985,0.3831,2464.1,2464.0,0.40594]
[1728860863186,0.78902,2464.1,2464.0,0.40594]
[1728860864698,0.3831,2464.1,2464.0,0.40594]
[1728860865195,0.78902,2464.1,2464.0,0.40594]
[1728860865996,3.2078,2464.2,2464.1,0.40592]
[1728860866195,3.2078,2464.2,2464.0,0.40593]
[1728860866196,4.02492,2464.2,2464.0,0.40593]
[1728860866589,3.619,2464.2,2464.1,0.40592]
[1728860867097,4.02491,2464.2,2464.1,0.40592]
[1728860867892,3.619,2464.2,2464.1,0.40592]
[1728860868295,4.02491,2464.2,2464.1,0.40592]
[1728860868485,3.619,2464.2,2464.1,0.40592]
[1728860868687,0.4112,2464.2,2464.1,0.40592]
[1728860869095,0.417,2464.4,2464.1,0.4139]
[1728860869293,0.8169,2464.4,2464.3,0.40589]
[1728860869487,0.3999,2464.4,2464.3,0.40589]
[1728860869694,3.2078,2464.6,2464.5,0.40586]
[1728860869896,3.6077,2464.6,2464.5,0.40586]
[1728860870392,3.6077,2464.6,2464.3,0.4032]
[1728860870393,0.49979,2464.9,2464.8,0.40581]
[1728860870588,0.80569,2464.9,2464.7,0.40582]
[1728860871290,0.3999,2464.9,2464.5,0.4139]
[1728860871583,0.8057,2464.9,2464.7,0.40581]
[1728860872088,0.8057,2464.9,2464.8,0.40581]
[1728860872292,0.3999,2464.9,2464.8,0.40581]
[1728860874398,3.2434,2465.3,2464.5,0.4139]
[1728860874591,3.2434,2465.3,2465.1,0.40576]
[1728860874592,0.3821,2465.2,2465.1,0.40576]
[1728860874788,3.2078,2465.4,2465.3,0.40573]
[1728860874991,3.2078,2465.4,2464.9,1.1815]
[1728860875386,3.2078,2465.4,2465.3,0.40573]
[1728860875698,3.2078,2465.4,2464.9,1.1815]
[1728860875894,3.2078,2465.4,2465.3,0.40573]
[1728860876192,0.4199,2465.6,2465.5,0.40569]
[1728860876401,0.3845,2465.8,2465.2,2.85]
[1728860876701,0.3845,2465.8,2465.7,0.40566]
[1728860877002,0.3845,2465.8,2465.6,0.40567]
[1728860877202,0.3845,2465.8,2465.3,0.4054]
[1728860877203,0.3845,2465.8,2465.4,0.7776]
[1728860877398,0.40562,2466.0,2465.7,0.40565]
[1728860877598,2.85,2466.1,2465.4,0.7776]
[1728860877599,4.39319,2466.2,2465.4,4.64185]
[1728860877800,4.39319,2466.2,2465.9,0.40562]
[1728860878095,0.4056,2466.1,2465.4,4.64185]
[1728860878298,0.4056,2466.1,2465.8,0.40563]